Cogmind - Beta 15 @@@ ROGUE MODE // 2025.06.15 @ 15:05:44 Player: kim.jet.wav Result: Self-destructed Performance ------------- Evolutions (1) 500 Regions Visited (2) 400 Robots Destroyed (9) 45 Value Destroyed (148) 148 Prototype IDs (1) 20 Alien Tech Used (0) 0 Bonus (0) 0 TOTAL SCORE: 1113 Bonus ------- None Cogmind --------- Core Integrity 400/400 Matter 250/300 Energy 400/400 System Corruption 0% Temperature Cool (99) Movement Walking (190) Ox1 Location -9/Materials Parts ------- > --- POWER (2) -------- Ion Engine Ion Engine > --- PROPULSION (2) --- Aluminum Leg Aluminum Leg > --- UTILITY (3) ------ Heat Sink Medium Storage Unit Seismic Detector > --- WEAPON (2) ------- Improved Medium Laser Beam Cannon > --- INVENTORY (10) --- Aluminum Leg Large Storage Unit Improved Terrain Scanner EM Pulse Gun EM Pulse Gun Medium Laser Particle Gun Light Cannon Peak State ------------ > --- POWER ------------ Ion Engine Ion Engine > --- PROPULSION ------- Aluminum Leg Aluminum Leg > --- UTILITY ---------- Heat Sink Medium Storage Unit Seismic Detector > --- WEAPON ----------- Improved Medium Laser Beam Cannon > --- INVENTORY -------- Aluminum Leg Large Storage Unit Improved Terrain Scanner EM Pulse Gun EM Pulse Gun Medium Laser Particle Gun Light Cannon [Rating: 12] Favorites ----------- Power Ion Engine Engine Ion Engine Propulsion Aluminum Leg Leg Aluminum Leg Utility Seismic Detector Device Seismic Detector Storage Medium Storage Unit Weapon EM Pulse Gun Energy Gun EM Pulse Gun Energy Cannon Beam Cannon Build | -11 -10 -9 ------- Run | Yrd Mat Mat Slots Evolved 2 | . . 2 Power 1 | . . 1 Propulsion . | . . . Utility 1 | . . 1 Weapon . | . . . Parts Attached 13 | 8 1 4 Power 2 | 1 . 1 Engine 2 | 1 . 1 Core . | . . . Reactor . | . . . Propulsion 2 | 2 . . Treads . | . . . Leg 2 | 2 . . Wheel . | . . . Hover . | . . . Flight . | . . . Utility 4 | 2 1 1 Device 2 | 1 . 1 Storage 2 | 1 1 . Processor . | . . . Hackware . | . . . Protection . | . . . Artifact . | . . . Weapon 5 | 3 . 2 Energy Gun 4 | 3 . 1 Energy Cannon 1 | . . 1 Ballistic Gun . | . . . Ballistic Cannon . | . . . Launcher . | . . . Special Weapon . | . . . Impact Weapon . | . . . Slashing Weapon . | . . . Piercing Weapon . | . . . Special Melee Weapon . | . . . Unidentified Prototypes 1 | . . 1 Parts Lost 1 | . . 1 Power . | . . . Propulsion . | . . . Utility . | . . . Weapon 1 | . . 1 Highest Loss Streak 1 | . . 1 To Critical Strikes . | . . . Average Backups 5 | 1 5 6 Power . | . 1 . Propulsion . | . . 1 Utility 1 | . 2 2 Weapon 2 | . 1 3 Tool/Special . | . . . Unused Backups 5 | . . 5 Power . | . . . Propulsion 1 | . . 1 Utility 2 | . . 2 Weapon 2 | . . 2 Tool/Special . | . . . Average Slot Usage (%) 99 | . 100 98 Engine 16 | . 14 22 Leg 25 | . 28 22 Device 16 | . 14 21 Storage 12 | . 14 11 Energy Gun 24 | . 28 17 Energy Cannon 1 | . . 4 Peak Build Rating 12 | 7 8 12 Average Rating 7 | 5 7 10 On Entrance 5 | . 7 8 Naked Turns . | . . . Heaviest Build 28 | 15 20 28 Greatest Support 20 | 20 20 20 Greatest Overweight (x) 4 | 4 . 1 Average Overweight (x) . | . . 1 Largest Inventory Capacity 10 | 8 10 10 Average Capacity 9 | 7 9 10 Most Carried 8 | 3 8 8 Average Carried 5 | 1 5 6 Final Capacity 10 | 8 10 10 Final Carried 8 | 3 8 8 Class Distribution -------------------- 100% | Mutant Dominant Class ---------------- Mutant | -10/Materials Mutant | -9/Materials Resources | -11 -10 -9 ----------- Run | Yrd Mat Mat Matter Collected 290 | 220 70 . Remotely . | . . . Salvage Created 184 | 18 166 . Parts 24 | 7 17 . Haulers Intercepted . | . . . Recyclers Shooed 1 | 1 . . Parts Field Recycled . | . . . Retrieved Matter . | . . . Parts Self-Destructed . | . . . Prevented . | . . . Kills | -11 -10 -9 ------- Run | Yrd Mat Mat Combat Hostiles Destroyed 6 | . 6 . Guns 6 | . 6 . Classes Destroyed 4 | 1 3 . Tunneler 2 | 2 . . Watcher 1 | . 1 . Swarmer 4 | . 4 . Grunt 2 | . 2 . Best Kill Streak 5 | 2 5 . Combat Bots Only 5 | . 5 . Max Kills in Single Turn 2 | 2 2 . Gunslinging 1 | . 1 . Exploded . | . . . Melee . | . . . Uniques/NPCs Destroyed . | . . . Combat | -11 -10 -9 -------- Run | Yrd Mat Mat Hostile Shots Fired 28 | . 20 8 Missed 11 | . 7 4 Hits 17 | . 13 4 Projectile 17 | . 13 4 Damage Taken 172 | . 109 63 Core 16 | . 16 . Absorbed by Shields . | . . . Core Remaining (%) 96 | 100 93 . Volleys Fired 15 | 2 10 3 Largest 2 | 2 2 2 Hottest 116 | 80 80 116 Shots Fired 30 | 4 20 6 Gun 27 | 4 20 3 Cannon 3 | . . 3 Launcher . | . . . Special . | . . . Kinetic . | . . . Thermal 6 | . . 6 Explosive . | . . . Electromagnetic 24 | 4 20 . Robot Hit Streak 9 | 4 5 9 Robot Miss Streak 2 | . 2 1 Penetration Max . | . . . Secondary Targets 2 | . 2 . Max Gunslinging Chain 1 | . 1 . Shots Hit Robots 20 | 4 11 5 Core Hits 11 | 2 9 . Critical Kills . | . . . Critical Parts Destroyed . | . . . Critical Strikes . | . . . Melee Attacks . | . . . Impact . | . . . Slashing . | . . . Piercing . | . . . Sneak Attacks . | . . . Combat Hostiles . | . . . Follow-up Attacks . | . . . Damage Inflicted 398 | 149 163 86 Guns 271 | 57 163 51 Cannons 35 | . . 35 Explosions 92 | 92 . . Melee . | . . . Ramming . | . . . Kinetic . | . . . Thermal 178 | 92 . 86 Explosive . | . . . Electromagnetic 220 | 57 163 . Impact . | . . . Slashing . | . . . Piercing . | . . . Highest Corruption . | . . . Average Corruption . | . . . Corruption Purged . | . . . Corruption Blocked . | . . . Overload Shots . | . . . Overflow Damage . | . . . Projectiles . | . . . Explosions . | . . . Melee . | . . . Knockbacks . | . . . Impact . | . . . Kinetic . | . . . Secondary . | . . . Self-Inflicted Damage . | . . . Shots . | . . . Rammed . | . . . Targets Rammed . | . . . Kicked . | . . . Crushed . | . . . Highest Temperature 100 | 36 100 99 Average Temperature 41 | 20 41 55 Received Heat Transfer 30 | . 12 18 Siege Activations . | . . . Martial Activations . | . . . Shielding Activations . | . . . Robots Disrupted . | . . . Combat Hostiles . | . . . Robots Corrupted . | . . . Combat Hostiles . | . . . Parts Fried . | . . . Impact Corruptions . | . . . Robots Melted . | . . . Combat Hostiles . | . . . Parts Melted . | . . . Heat Transferred 235 | 50 . 185 Parts Sabotaged . | . . . Parts Stolen . | . . . Parts Stripped . | . . . Power Chain Reactions 1 | 1 . . Alert | -11 -10 -9 ------- Run | Yrd Mat Mat Maximum Alert Level . | . . . Low Security (%) 100 | 100 100 100 Level 1 . | . . . Level 2 . | . . . Level 3 . | . . . Level 4 . | . . . Level 5 . | . . . High Security . | . . . Max Security . | . . . Peak Influence 115 | 10 115 35 Initial 35 | . . 35 Average 15 | . 22 7 Influence Increases 178 | 10 168 . Destroy 0b10 Robot/C 120 | . 120 . Destroy 0b10 Robot/NC 15 | 10 5 . Destroy Leader 22 | . 22 . Successful Hack 6 | . 6 . Disable Machine 15 | . 15 . Influence Decreases 178 | 10 83 85 Entered New Map 50 | . . 50 Time Decay 128 | 10 83 35 Squads Dispatched 1 | . 1 . Investigation . | . . . Extermination . | . . . Reinforcement 1 | . 1 . Assault . | . . . Garrison . | . . . Intercept . | . . . Searches Triggered . | . . . Construction Impeded . | . . . Haulers Reinforced . | . . . Active Scanning Responses . | . . . Cargo Convoy Interrupts . | . . . Stealth | -11 -10 -9 --------- Run | Yrd Mat Mat Distress Signals 1 | . 1 . Communications Jammed . | . . . Distress Signals . | . . . Times Spotted 10 | . 9 1 Peak Tracking Total 5 | . 5 1 Tactical Retreats . | . . . Traps | -11 -10 -9 ------- Run | Yrd Mat Mat Traps Triggered . | . . . Indirectly . | . . . Trap Hack Attempts . | . . . Triggered . | . . . Disarmed . | . . . Reprogrammed . | . . . Reused . | . . . Traps Extracted . | . . . Installed . | . . . Triggered . | . . . Machines | -11 -10 -9 ---------- Run | Yrd Mat Mat Machines Disabled 1 | . 1 . Max in Single Turn 1 | . 1 . Machines Repaired . | . . . Machines Dismantled . | . . . Machines Sabotaged . | . . . Overloaded Fab Kills . | . . . Hacking | -11 -10 -9 --------- Run | Yrd Mat Mat Machines Accessed 2 | . 2 . Terminals 2 | . 2 . Fabricators . | . . . Repair Stations . | . . . Recycling Units . | . . . Scanalyzers . | . . . Garrison Access . | . . . Total Hacks 4 | . 4 . Successful 2 | . 2 . Failed 2 | . 2 . Catastrophic . | . . . Database Lockouts . | . . . Manual 2 | . 2 . Terminals 4 | . 4 . Fabricators . | . . . Repair Stations . | . . . Recycling Units . | . . . Scanalyzers . | . . . Garrison Access . | . . . Terminal Hacks 2 | . 2 . Locate Traps 1 | . 1 . Zone Layout 1 | . 1 . Fabricator Hacks . | . . . Repair Station Hacks . | . . . Recycling Unit Hacks . | . . . Scanalyzer . | . . . Garrison Access Hacks . | . . . Unauthorized Hacks . | . . . Terminals . | . . . Fabricators . | . . . Repair Stations . | . . . Recycling Units . | . . . Scanalyzers . | . . . Garrison Access . | . . . Data Cores Recovered . | . . . Used . | . . . Hacking Detections 2 | . 2 . Full Trace Events . | . . . Feedback Events . | . . . Feedback Blocked . | . . . Robot Schematics Acquired . | . . . Robots Built . | . . . Authchips . | . . . Time . | . . . Total Robot Build Rating . | . . . Part Schematics Acquired . | . . . Parts Built . | . . . Authchips . | . . . Time . | . . . Total Part Build Rating . | . . . Parts Repaired . | . . . Time . | . . . Parts Recycled . | . . . Recycled Matter . | . . . Retrieved Matter . | . . . Retrieved Components . | . . . Parts Scanalyzed . | . . . Part Schematics Acquired . | . . . Parts Damaged . | . . . Bothacking | -11 -10 -9 ------------ Run | Yrd Mat Mat Used RIF Installer . | . . . Robots Hacked . | . . . Non-combat . | . . . Combat . | . . . Robot Hacks Applied . | . . . Relay Couplers Released . | . . . Fabnet Peak Effective % . | . . . Robots Rewired . | . . . Allies Hacked . | . . . Hacks Repelled . | . . . Allies | -11 -10 -9 -------- Run | Yrd Mat Mat Total Allies . | . . . Largest Group . | . . . Highest-Rated Group . | . . . Highest-Rated Ally . | . . . Total Orders . | . . . Ally Attacks . | . . . Total Damage . | . . . Kills . | . . . Allies Corrupted . | . . . Allies Melted . | . . . Intel | -11 -10 -9 ------- Run | Yrd Mat Mat Active Infowar (turns) 623 | 10 391 222 Seismic 623 | 10 391 222 Robot Analysis Total . | . . . Derelict Logs Recovered . | . . . Drone Launches . | . . . Drone Recoveries . | . . . Exploration | -11 -10 -9 ------------- Run | Yrd Mat Mat Turns Passed 694 | 81 391 222 Spaces Moved 404 | 45 257 102 Core 11 | 11 . . Treads . | . . . Legs 393 | 34 257 102 Wheels . | . . . Hover . | . . . Flight . | . . . Fastest Speed 50 | 50 120 190 Average Speed 138 | 128 120 190 Slowest Speed 250 | 250 120 190 Overloaded Moves . | . . . Propulsion Burnouts . | . . . Robots Hopped . | . . . Potential Cave-ins . | . . . Cave-ins Triggered . | . . . Exploration Rate (%) 18 | 4 38 13 Regions Visited 2 Branch Regions . Pre-discovered Areas . | . . . Known Exits Taken . | . . . Unknown Exits Taken 2 | 1 1 . Scrap Searched . | . . . Spaces Dug . | . . . Terrain Destroyed 4 | 4 . . Melee . | . . . Projectile . | . . . AOE 4 | 4 . . Terrain Rammed . | . . . Walls Destroyed . | . . . Machines Disabled . | . . . Actions | -11 -10 -9 --------- Run | Yrd Mat Mat Total 504 | 61 319 124 Wait 59 | 2 46 11 Move 402 | 44 256 102 Hop . | . . . Pick Up 11 | 5 5 1 Fast Attach 7 | 5 . 2 Attach 5 | 2 . 3 Detach 2 | . . 2 Swap 2 | 1 1 . Drop 1 | . 1 . Fire 15 | 2 10 3 Melee . | . . . Ram . | . . . Kick . | . . . Crush . | . . . Escape Stasis . | . . . Rewire . | . . . Trap . | . . . Miscellaneous . | . . . Route ------- -11/Scrapyard -10/Materials -9/Materials (discovered 1 exit: [*Min]) History --------- Turn | Location | Event 20 | -11/Scrapyard | Discovered new exit (range 15) 82 | -11/Scrapyard | Entered Materials 305 | -10/Materials | Build established: Mutant 415 | -10/Materials | Discovered new exit (range 15) 473 | -10/Materials | Entered another Materials area 473 | -9/Materials | Evolved 2 slots: Power x1, Utility x1 479 | -9/Materials | Discovered new exit (range 10) 695 | -9/Materials | Self-destructed Last Messages --------------- 00400_ G-34 Mercenary destroyed. 00400_ Switching to secondary target: G-34 Mercenary. 00403_ G-34 Mercenary destroyed. 00408_ Acquired 5 matter. 00415_ EXIT=FOUND 00444_ Acquired Lgt. Cannon. PARAMETERS=POWER+1,UTILITY+1 LOCATION=UNKNOWN GOAL=ESCAPE 00479_ EXIT=FOUND 00495_ K-01 Serf collects debris. 00598_ Acquired Prototype Energy Gun. 00598_ Identified Imp. Medium Laser. 00601_ Acquired Faulty Imp. Medium Laser. 00601_ Faulty integration triggers meltdown. 00601_ Med. Storage Unit damaged (-56). 00601_ Aluminum Leg damaged (-17). 00601_ Aluminum Leg damaged (-23). 00623_ Acquired Particle Gun. 00694_ Y-45 Defender heat short circuits Lgt. Treads. Map ----- +----------------------------------------------------+ | ????????????????????????????????????????????????# | | ????????????????????????????????????????????????# | | ????????????????????????????????????????????????# | | ????????????????????????????????????????????????# | | ???????????????????????????????????? ???????????# | | ???????????????????????????????????? ???????????# | | ???????????????????????????????????? ???????????# | | ???????????????????????????????????? ############ | | ????????????????????? ????????????? | | ????????????????????? ????????????? | | ????????????????????? ????????????? | | ????????????????????? ?????????????# #??######### | | ????????????????????? ?????????????# #??????????# | | ????????????????????? ?????????????# #??????????# | | ????????????????????? ?????+???????# #??????????# | | ????????????????????# #???? ???????# ########???# | | ????????????????????# #???? ######## # [ #???# | | ????????????????????# #???# # # # [ #???# | | ????????????????????# #???# # """ # # #???# | | ???????????????????? #???# # """ + + #???# | | ????????????????????# #???# # """ # # ! #???# | | ????????????????????# #???# # """ # # #???# | | ????????????????????# #???# # *# ########???# | | ????????????????????# #???# ##+##### # [ #???# | | ????????????????????# ##### ##### # #???# | | ????????????????????# Y @ + """ #???# | | ????????????????????################## """ ##### | | ?????????????????????????????????????# """ + | | ?????????????????????????????????????# ###### | | ?????????????????????????????????????########????? | | ?????????????????????????????????????????????????? | | ?????????????????????????????????????????????????? | | | | | | | | | | | | | | | | | | | | | | | | | | | | | | | | | | | | | +----------------------------------------------------+ Best States ------------- Heat Dissipation 38 Energy Generation 15 Energy Capacity 400 Matter Stores 300 Matter Capacity 300 Sight Range 16 Terrain Scan Density 10 Evasion (%) 55 Item Schematics ----------------- None Robot Schematics ------------------ None Fabricated ------------ Nothing Repaired ---------- Nothing Alien Tech Used ----------------- None Achievements -------------- None Challenges ------------ None Game ------ Seed HugeAdvancedSegregator Manual? 0 Play Time 00:21:02 Cumulative 34.2 hours Start 2025.06.15 @ 13:49:31 End 2025.06.15 @ 15:05:44 Sessions 1 Manual Loads 0 Difficulty Rogue Special Mode None Game No. 187 Rogue 187 Adventurer 0 Explorer 0 Win Type - Total 0 Types 0/0/0/0/0/0/0/0/0/0 Lore% 13 Gallery% 17 Achievement% 17 Wizard Run 0 Options --------- Layout 0 ASCII 1 Keyboard 1 Movement Numpad Keybinds 1 Fullscreen 1 Font 18/X11 Map View 76x50 Zoom Use 0% Tactical HUD 1 Map Filters NONE Filters NONE Steam 1 RUN: ea535dea-0c8c-4b32-872f-1fb87a09362d